bitfinex/quotes_SOLUSD_20220128
["timestamp","ask_amount","ask_price","bid_price","bid_amount"]
[1643348151929,109.3,92.949,92.857,46.52797802]
[1643348152127,6.0,92.939,92.857,46.52797802]
[1643348152729,6.0,92.939,92.858,0.25]
[1643348153128,8.95669142,92.939,92.858,0.25]
[1643348154532,2.95669142,92.939,92.858,0.25]
[1643348155132,2.95669142,92.939,92.825,0.25]
[1643348155535,6.0,92.929,92.834,6.0]
[1643348155937,6.0,92.929,92.835,47.3124144]
[1643348156234,45.8414,92.928,92.835,47.3124144]
[1643348157137,2.95669142,92.927,92.835,47.3124144]
[1643348157534,112.25669142,92.927,92.835,47.3124144]
[1643348157735,2.95669142,92.927,92.835,47.3124144]
[1643348157935,2.95669142,92.927,92.836,0.25]
[1643348158636,2.95669142,92.927,92.835,47.3124144]
[1643348159135,2.95669142,92.927,92.836,0.25]
[1643348159935,112.25669142,92.927,92.816,15.81524554]
[1643348160236,112.25669142,92.927,92.78,125.465]
[1643348160237,112.25669142,92.927,92.799,15.81524554]
[1643348160438,109.3,92.925,92.799,15.81524554]
[1643348160636,109.3,92.925,92.8,45.88662503]
[1643348160835,2.95669142,92.924,92.8,45.88662503]
[1643348161236,2.95669142,92.924,92.801,0.25]
[1643348161436,16.1673,92.92,92.801,0.25]
[1643348161835,2.95669142,92.919,92.801,0.25]
[1643348162241,112.25669142,92.919,92.801,0.25]
[1643348162638,6.0,92.909,92.801,0.25]
[1643348162840,24.2124,92.908,92.801,0.25]
[1643348163039,27.16909142,92.908,92.801,0.25]
[1643348163338,2.95669142,92.907,92.801,0.25]
[1643348165439,112.25669142,92.907,92.801,0.25]
[1643348165842,2.95669142,92.906,92.801,0.25]
[1643348166652,6.0,92.896,92.801,0.25]
[1643348166850,48.1979,92.895,92.801,0.25]
[1643348167148,109.3,92.894,92.801,0.25]
[1643348167747,109.3,92.894,92.802,2.14258765]
[1643348167948,109.3,92.894,92.801,0.25]
[1643348169251,48.1979,92.895,92.801,0.25]
[1643348169453,48.1979,92.895,92.802,17.95783319]
[1643348169652,19.14464901,92.95,92.81,115.3]
[1643348169956,16.1628,92.95,92.812,5.5]
[1643348170380,16.1628,92.95,92.813,29.274949]
[1643348170580,16.1628,92.95,92.814,38.35033472]
[1643348170780,6.0,92.94,92.815,0.25]
[1643348170984,6.0,92.94,92.815,16.06524554]
[1643348171187,6.0,92.94,92.815,29.274949]
[1643348171383,6.0,92.94,92.825,6.0]
[1643348171582,6.0,92.94,92.826,6.0]
[1643348171783,6.0,92.94,92.826,8.39258765]
[1643348171981,6.0,92.94,92.827,2.14258765]
[1643348172182,6.0,92.94,92.828,37.95469522]
[1643348172383,6.0,92.94,92.837,6.0]
[1643348172585,6.0,92.94,92.838,6.0]
[1643348172790,6.0,92.94,92.839,0.25]
[1643348173082,6.0,92.94,92.839,6.25]
[1643348173483,6.0,92.94,92.84,2.14258765]
[1643348173782,6.0,92.94,92.841,0.25]
[1643348173982,6.0,92.94,92.85,6.0]
[1643348174185,6.0,92.94,92.851,36.46806499]
[1643348174383,46.1365,92.949,92.851,36.71806499]
[1643348175983,46.1365,92.949,92.861,6.0]
[1643348176183,46.1365,92.949,92.851,36.71806499]
[1643348176384,109.3,92.948,92.851,36.71806499]
[1643348177486,46.1365,92.949,92.851,36.71806499]
[1643348177988,6.0,92.939,92.851,36.71806499]
[1643348178586,109.3,92.948,92.851,36.71806499]
[1643348179985,109.3,92.948,92.851,36.46806499]
[1643348180189,109.3,92.948,92.852,0.25]
[1643348180586,2.99528176,92.947,92.852,0.25]
[1643348180785,2.99528176,92.947,92.861,6.0]
[1643348181191,46.1365,92.949,92.862,0.25]
[1643348181592,6.0,92.939,92.862,0.25]
[1643348183691,24.4193,92.938,92.861,6.0]
[1643348184091,24.4193,92.938,92.794,2.91964218]
[1643348184291,24.4193,92.938,92.824,2.1376648]
[1643348184492,2.95669142,92.937,92.834,6.0]
[1643348184693,2.98184901,92.947,92.834,6.0]
[1643348184892,2.95669142,92.959,92.835,111.6876648]
[1643348185092,2.98184901,92.978,92.837,45.18768055]
[1643348185293,2.98184901,92.985,92.838,0.25]
[1643348185500,2.98184901,93.005,92.848,109.3]
[1643348185694,2.99452452,93.008,92.849,26.89658236]
[1643348185898,2.98184901,93.02,92.9,16.1418]
[1643348186096,2.98184901,93.025,92.91,6.0]
[1643348186298,2.99452452,93.031,92.911,0.25]
[1643348186495,2.99452452,93.031,92.911,23.56738936]
[1643348186696,2.99452452,93.031,92.912,11.94461581]
[1643348186895,1.49227375,93.011,92.913,0.25]
[1643348187095,1.49227375,93.015,92.923,41.35831115]
[1643348187296,1.49227375,93.018,92.924,0.25]
[1643348187496,1.48997032,93.024,92.933,6.0]
[1643348187698,22.47577375,93.032,92.933,6.0]
[1643348187897,22.47577375,93.032,92.934,6.25]
[1643348188101,22.47577375,93.032,92.945,38.00934567]
[1643348188298,18.48041441,93.054,92.946,0.25]
[1643348188498,18.48041441,93.054,92.955,6.0]
[1643348188700,18.48041441,93.054,92.925,2.17029315]
[1643348188901,6.0,93.044,92.914,14.11490896]
[1643348189107,24.1514,93.043,92.924,6.0]
[1643348189400,2.97458069,93.042,92.911,6.0]
[1643348189601,21.4549951,93.042,92.912,6.0]
[1643348189801,21.4549951,93.042,92.913,35.22996451]
[1643348189802,127.78041441,93.041,92.913,35.22996451]
[1643348190002,130.7549951,93.041,92.913,35.22996451]
[1643348190202,21.4549951,93.04,92.914,0.25]
[1643348190402,2.97458069,93.039,92.914,0.25]
[1643348190605,24.41168652,93.039,92.895,11.94461581]
[1643348190803,111.9,93.035,92.88,2.17029315]
[1643348191103,111.9,93.035,92.812,5.0]
[1643348191104,2.97458069,93.034,92.851,48.3983]
[1643348191304,35.05492558,93.034,92.851,48.3983]
[1643348191503,35.0621939,93.033,92.856,2.17029315]
[1643348191705,2.98184901,93.031,92.857,45.73329979]
[1643348191903,2.97458069,93.031,92.857,45.73329979]
[1643348192103,21.43710583,93.03,92.867,6.0]
[1643348192403,16.1517,93.01,92.868,23.1621]
[1643348192603,22.9629,93.009,92.871,40.34932985]
[1643348192812,41.44331441,93.009,92.878,6.0]
[1643348193006,127.78041441,93.008,92.881,6.0]
[1643348193407,18.48041441,93.007,92.882,0.25]
[1643348193608,109.3,93.006,92.882,6.25]
[1643348194508,109.3,92.995,92.882,6.25]
[1643348194708,109.3,92.993,92.882,6.25]
[1643348195009,109.3,92.993,92.882,0.25]
[1643348195408,109.3,92.993,92.873,0.25]
[1643348195812,109.3,92.993,92.873,17.65886602]
[1643348196108,109.3,92.993,92.873,17.40886602]
[1643348196310,109.3,92.993,92.874,0.25]
[1643348196731,109.3,92.993,92.875,17.40886602]
[1643348196931,2.95669142,92.992,92.875,17.40886602]
[1643348197137,2.95669142,92.992,92.871,40.34932985]
[1643348197633,2.98184901,93.011,92.872,21.08024346]
[1643348197832,2.9758195,93.014,92.88,0.3216547]
[1643348198035,2.98184901,93.075,92.882,6.0]
[1643348198238,15.8208,93.143,92.89,16.1448]
[1643348198239,2.97360218,93.084,92.89,16.1448]
[1643348198438,84.8664801,93.086,92.915,0.32435891]
[1643348198836,84.8664801,93.086,92.917,44.77078079]
[1643348199134,2.97126954,93.085,92.927,6.0]
[1643348199336,15.6404,93.07,92.94,16.1373]
[1643348199535,15.6404,93.07,92.95,6.0]
[1643348199735,6.0,93.06,92.95,6.0]
[1643348199935,6.0,93.06,92.951,6.25]
[1643348201636,109.3,93.059,92.951,6.25]
[1643348202038,15.6404,93.07,92.952,109.3]
[1643348202238,2.98184901,93.117,92.96,16.1338]
[1643348202438,2.96324773,93.133,92.963,109.3]
[1643348202638,2.98184901,93.13,92.973,6.0]
[1643348202838,2.98184901,93.13,92.974,109.55]
[1643348203137,2.98184901,93.125,92.984,6.0]
[1643348203338,2.98184901,93.125,92.985,0.25]
[1643348203541,5.94509674,93.133,92.985,6.25]
[1643348203739,6.0,93.115,92.986,2.17029315]
[1643348203939,23.2837,93.114,92.991,45.88686079]
[1643348204138,6.0,93.105,93.001,6.0]
[1643348204342,6.0,93.105,93.002,0.25]
[1643348204740,6.0,93.105,92.966,18.83589801]
[1643348205140,6.0,93.105,92.981,6.0]
[1643348205540,6.0,93.105,92.961,2.17029315]
[1643348205740,27.61569142,93.104,92.946,18.83589801]
[1643348205942,24.3484,93.103,92.946,18.83589801]
[1643348206145,2.95669142,93.103,92.946,18.83589801]
[1643348206340,16.30833108,93.103,92.96,16.1326]
[1643348206540,2.95669142,93.125,92.97,0.32385854]
[1643348206739,46.6338,93.179,92.97,0.32385854]
[1643348206740,2.98184901,93.165,92.97,0.32385854]
[1643348206941,2.98184901,93.172,92.972,109.3]
[1643348207242,2.98184901,93.17,92.973,9.9918299]
[1643348207441,47.9253,93.136,93.01,16.1213]
[1643348207642,47.9253,93.136,93.02,6.0]
[1643348207851,47.9253,93.136,93.021,0.25]
[1643348208144,47.9253,93.136,93.021,26.32024801]
[1643348208342,47.9253,93.136,93.021,28.49867174]
[1643348208542,47.9253,93.136,93.022,22.24867174]
[1643348208945,47.9253,93.136,93.033,39.39853587]
[1643348209142,47.9253,93.136,93.043,6.0]
[1643348209343,47.9253,93.136,93.044,0.25]
[1643348209546,2.95669142,93.135,93.044,0.25]
[1643348210946,2.95669142,93.146,93.044,0.25]
[1643348211146,2.95669142,93.146,93.045,2.17842373]
[1643348211352,16.1214,93.18,93.046,0.25]
[1643348211546,53.7579,93.17,93.021,2.17842373]
[1643348211746,2.98184901,93.166,92.97,16.112]
[1643348211947,2.98184901,93.159,92.972,2.17842373]
[1643348212148,2.95230646,93.166,92.972,2.17842373]
[1643348212347,48.9363,93.158,92.973,43.76620906]
[1643348212546,48.9363,93.158,92.974,145.65129164]
[1643348212746,48.9363,93.158,92.98,53.7537]
[1643348212950,48.9363,93.158,92.981,23.5941]
[1643348213146,48.9363,93.158,92.98,53.7537]
[1643348213147,16.1285,93.14,92.98,53.7537]
[1643348213348,23.1413,93.139,92.981,2.17340594]
[1643348213547,23.1413,93.139,92.985,6.0]
[1643348213548,31.63467351,93.139,92.985,6.0]
[1643348213749,31.63467351,93.139,92.984,6.0]
[1643348213952,23.1413,93.139,92.984,6.0]
[1643348214152,99.0095,93.138,92.984,6.0]
[1643348214350,16.1341,93.11,92.984,6.0]
[1643348214552,46.3758,93.109,92.985,0.25]
[1643348214751,46.3758,93.109,92.975,0.25]
[1643348214953,46.3758,93.109,92.984,6.0]
[1643348215152,2.95669142,93.108,92.984,6.0]
[1643348215351,2.95669142,93.108,92.985,0.25]
[1643348215550,2.95669142,93.108,92.984,6.0]
[1643348215751,2.95669142,93.108,92.974,36.35129164]
[1643348216052,2.95669142,93.108,92.985,2.17340594]
[1643348216252,2.45669142,93.108,92.985,2.17340594]
[1643348216454,46.3758,93.109,92.985,2.17340594]
[1643348216852,46.3758,93.109,92.986,0.25]
[1643348217053,2.95669142,93.108,92.995,6.0]
[1643348217254,2.95669142,93.108,92.996,0.25]
[1643348217653,46.3758,93.109,92.996,0.25]
[1643348218255,46.3758,93.109,92.975,109.3]
[1643348218457,46.3758,93.109,92.973,2.17340594]
[1643348218458,2.95669142,93.108,92.973,2.17340594]
[1643348218656,2.95669142,93.108,92.985,6.0]
[1643348218856,46.3758,93.109,92.984,6.0]
[1643348219059,2.95669142,93.108,92.986,109.3]
[1643348219257,2.95669142,93.108,92.986,111.47478096]
[1643348219457,46.3758,93.109,92.996,6.0]
[1643348219857,46.3758,93.109,92.997,6.0]
[1643348220358,46.3758,93.109,92.998,0.25]
[1643348220559,45.8758,93.109,92.998,0.25]
[1643348220958,45.8758,93.109,92.998,109.55]
[1643348221360,45.8758,93.109,93.009,38.4405989]
[1643348221564,45.8758,93.109,93.009,147.7405989]
[1643348221759,45.8758,93.109,93.01,0.25]
[1643348224776,45.8758,93.109,93.011,2.17478096]
[1643348225076,45.8758,93.109,93.01,0.25]
[1643348225276,2.98184901,93.139,93.01,0.25]
[1643348225477,48.12,93.137,93.02,109.3]
[1643348225876,48.12,93.137,93.03,6.0]
[1643348226076,2.98184901,93.16,93.031,6.0]
[1643348226277,2.95669142,93.164,93.031,8.42478096]
[1643348226278,5.94747262,93.163,93.031,8.42478096]
[1643348226477,2.98184901,93.174,93.032,142.44728225]
[1643348226677,2.96736571,93.175,93.032,144.62206321]
[1643348226880,45.9233,93.176,93.042,6.0]
[1643348227177,2.96732984,93.175,93.043,80.82820621]
[1643348227381,2.98184901,93.194,93.058,0.32338526]
[1643348227577,2.98184901,93.194,93.087,0.31300681]
[1643348227777,0.0425871,93.238,93.087,0.31300681]
[1643348227778,2.98184901,93.232,93.087,0.31300681]
[1643348227985,0.0425871,93.238,93.092,5.0]
[1643348228279,0.0425871,93.238,93.094,109.3]
[1643348228479,3.02443611,93.238,93.11,16.1021]
[1643348228677,0.0425871,93.238,93.111,109.3]
[1643348228877,0.0425871,93.238,93.112,0.25]
[1643348229079,0.0425871,93.238,93.122,44.6328462]
[1643348229080,2.98184901,93.231,93.122,44.6328462]
[1643348229278,2.98184901,93.23,93.123,109.55]
[1643348229481,2.98184901,93.23,93.132,6.0]
[1643348229677,2.98184901,93.236,93.134,109.3]
[1643348230078,0.0425871,93.238,93.144,6.0]
[1643348230276,0.0425871,93.238,93.145,0.25]
[1643348230679,0.0425871,93.238,93.145,8.41977089]
[1643348230980,0.0425871,93.238,93.15,6.0]
[1643348231179,0.0425871,93.238,93.151,39.93786193]
[1643348231378,0.0425871,93.238,93.156,6.0]
[1643348231579,0.0425871,93.238,93.161,6.0]
[1643348231982,0.0425871,93.238,93.135,19.48914224]
[1643348232380,0.0425871,93.238,93.136,0.25]
[1643348232880,0.0425871,93.238,93.145,6.0]
[1643348233081,0.0425871,93.238,93.146,6.0]
[1643348233280,0.0425871,93.238,93.146,6.25]
[1643348233480,1.50902865,93.254,93.147,6.0]
[1643348233681,1.50902865,93.254,93.157,109.3]
[1643348233882,1.50902865,93.254,93.158,0.25]
[1643348235083,1.50902865,93.254,93.157,6.0]
[1643348235286,1.50902865,93.254,93.158,0.25]
[1643348235685,23.8608,93.255,93.158,0.25]
[1643348237089,23.8608,93.255,93.15,6.0]
[1643348237292,23.8608,93.255,93.151,0.25]
[1643348238386,23.8608,93.255,93.158,6.0]
[1643348238788,23.8608,93.255,93.159,0.25]
[1643348239887,23.8608,93.255,93.151,0.25]
[1643348241991,23.8608,93.255,93.148,6.0]
[1643348242194,23.8608,93.255,93.149,0.25]
[1643348243396,23.8608,93.255,93.148,0.25]
[1643348243795,23.8608,93.255,93.138,0.25]
[1643348243996,109.3,93.254,93.138,0.25]
[1643348244197,109.3,93.254,93.139,18.86297557]
[1643348244397,23.8608,93.255,93.14,0.25]
[1643348244799,109.3,93.254,93.14,0.25]
[1643348245397,23.8608,93.255,93.14,0.25]
[1643348246096,109.3,93.254,93.14,0.25]
[1643348246297,2.98184901,93.253,93.14,0.25]
[1643348246496,2.98184901,93.252,93.14,0.25]
[1643348246897,16.1073,93.25,93.14,0.25]
[1643348247798,19.08914901,93.25,93.14,0.25]
[1643348247998,2.98184901,93.249,93.14,0.25]
[1643348248196,2.98184901,93.249,93.14,109.55]
[1643348248397,2.98184901,93.249,93.14,0.25]
[1643348248597,2.98184901,93.242,93.14,0.25]
[1643348248796,2.98184901,93.241,93.14,0.25]
[1643348248997,2.98184901,93.24,93.14,0.25]
[1643348249797,24.8626,93.239,93.14,109.55]
[1643348250497,24.8626,93.239,93.15,6.0]
[1643348250896,24.8626,93.239,93.151,0.25]
[1643348251997,2.98184901,93.238,93.142,0.25]
[1643348252600,26.10004901,93.237,93.142,0.25]
[1643348252999,2.98184901,93.229,93.142,0.25]
[1643348253600,2.98184901,93.228,93.142,0.25]
[1643348254797,2.98184901,93.227,93.142,0.25]
[1643348254999,2.98184901,93.214,93.141,2.16576521]
[1643348255201,2.98184901,93.213,93.135,16.069]
[1643348255401,23.1182,93.237,93.108,109.3]
[1643348255402,2.98184901,93.205,93.108,109.3]
[1643348255600,2.98184901,93.201,93.108,109.3]
[1643348255801,2.98184901,93.202,93.108,129.35530906]
[1643348256000,2.98184901,93.201,93.108,129.35530906]
[1643348256201,2.98184901,93.2,93.112,39.12139952]
[1643348256408,2.98184901,93.202,93.112,39.12139952]
[1643348256602,2.98184901,93.191,93.112,39.12139952]
[1643348256800,2.98184901,93.19,93.113,0.25]
[1643348257905,2.98184901,93.191,93.113,0.25]
[1643348259904,2.98184901,93.191,93.09,2.16982426]
[1643348260108,2.98184901,93.181,93.089,125.3805]
[1643348260305,2.98184901,93.181,93.091,0.25]
[1643348260509,2.98184901,93.181,93.099,6.0]
[1643348260707,2.98184901,93.18,93.089,125.3805]
[1643348260906,2.98184901,93.179,93.1,49.01794471]
[1643348261106,2.98184901,93.176,93.089,16.0805]
[1643348261307,2.98184901,93.176,93.061,23.2545]
[1643348261507,2.98184901,93.17,93.07,16.338]
[1643348261707,2.98184901,93.17,93.052,15.67797557]
[1643348261708,2.98184901,93.163,93.076,2.16982426]
[1643348261906,2.98184901,93.168,93.06,2.16982426]
[1643348262107,2.98184901,93.166,93.052,61.99112972]
[1643348262307,2.98184901,93.164,93.045,2.16982426]
[1643348262508,2.98184901,93.162,93.044,24.9987]
[1643348262707,2.98184901,93.16,93.045,109.3]
[1643348262905,2.98184901,93.16,93.044,24.9987]
[1643348263109,2.98184901,93.16,93.045,0.25]
[1643348263405,2.98184901,93.162,93.045,0.25]
[1643348263605,2.98184901,93.163,93.045,0.25]
[1643348263805,2.98184901,93.163,93.043,0.25]
[1643348264034,2.98184901,93.162,93.043,0.25]
[1643348264434,2.98184901,93.162,93.043,17.15575335]
[1643348264631,2.98184901,93.165,93.043,17.15575335]
[1643348265032,46.2854,93.164,93.043,17.15575335]
[1643348265232,49.26724901,93.164,93.043,17.15575335]
[1643348265637,46.2854,93.164,93.043,17.15575335]
[1643348266036,46.2854,93.164,93.044,2.16982426]
[1643348266235,49.26724901,93.164,93.044,2.16982426]
[1643348266436,109.3,93.163,93.045,17.15575335]
[1643348266640,2.98184901,93.162,93.045,17.15575335]
[1643348266837,109.3,93.163,93.046,19.07557761]
[1643348267238,2.98184901,93.162,93.047,19.32557761]
[1643348267639,109.3,93.163,93.048,19.07557761]
[1643348267841,49.26724901,93.164,93.049,109.55]
[1643348268040,2.98184901,93.173,93.059,6.0]
[1643348268345,2.98184901,93.184,93.06,0.25]
[1643348268540,2.98184901,93.192,93.06,37.32572768]
[1643348268739,2.98184901,93.192,93.061,12.00015007]
[1643348268940,2.98184901,93.201,93.072,35.50108384]
[1643348269141,2.98184901,93.201,93.101,42.66981422]
[1643348269339,2.98184901,93.208,93.102,0.25]
[1643348269540,2.98184901,93.211,93.111,6.0]
[1643348269742,2.98184901,93.209,93.111,6.0]
[1643348269942,2.98184901,93.204,93.101,42.66981422]
[1643348270141,2.98184901,93.201,93.102,0.25]
[1643348271642,2.98184901,93.199,93.102,0.25]
[1643348272842,2.98184901,93.199,93.073,19.07557761]
[1643348273045,2.98184901,93.188,93.083,6.0]
[1643348273241,2.98184901,93.187,93.084,0.25]
[1643348273445,2.98184901,93.186,93.084,0.25]
[1643348273643,2.98184901,93.185,93.084,0.25]
[1643348273842,2.98184901,93.188,93.084,37.92522434]
[1643348274044,2.98184901,93.194,93.094,6.0]
[1643348274242,2.98184901,93.194,93.095,0.25]
[1643348274442,2.98184901,93.195,93.095,0.25]
[1643348275047,2.98184901,93.193,93.095,0.25]
[1643348275546,2.98184901,93.194,93.095,0.25]
[1643348275746,2.98184901,93.193,93.095,0.25]
[1643348276047,2.98184901,93.194,93.073,16.90575335]
[1643348276251,2.98184901,93.186,93.074,0.25]
[1643348276447,2.98184901,93.183,93.055,16.90575335]
[1643348276654,2.98184901,93.177,93.058,6.0]
[1643348276848,2.98184901,93.174,93.055,16.90575335]
[1643348277045,2.98184901,93.174,93.038,2.16982426]
[1643348277046,2.98184901,93.16,93.038,2.16982426]
[1643348277546,5.93854043,93.159,93.038,2.16982426]
[1643348277946,2.98184901,93.157,93.034,38.48409621]
[1643348278348,2.95669142,93.156,93.034,38.48409621]
[1643348279947,2.95669142,93.156,93.043,0.25]
[1643348280548,2.95669142,93.156,93.035,0.25]
[1643348280948,5.93854043,93.156,93.035,0.25]
[1643348281152,2.95669142,93.156,93.035,19.38871896]
[1643348281349,2.95669142,93.156,93.04,16.1201]
[1643348281548,2.95669142,93.156,93.05,6.0]
[1643348281749,2.95669142,93.156,93.051,0.25]
[1643348281950,47.0904,93.158,93.051,19.38871896]
[1643348282248,47.0904,93.158,93.051,25.38871896]
[1643348283852,47.0904,93.158,93.051,25.13871896]
[1643348284054,2.95669142,93.157,93.052,0.25]
[1643348284353,2.95669142,93.157,93.051,25.13871896]
[1643348284552,2.95669142,93.157,93.051,6.0]
[1643348284753,2.95669142,93.157,93.052,0.25]
[1643348285153,47.0904,93.158,93.053,2.16982426]
[1643348285354,47.0904,93.158,93.059,6.0]
[1643348285653,47.0904,93.158,93.064,37.24067134]
[1643348285852,47.0904,93.158,93.065,0.25]
[1643348287454,47.0904,93.158,93.064,37.24067134]
[1643348287657,47.0904,93.158,93.065,0.25]
[1643348288357,47.0904,93.158,93.065,19.13871896]
[1643348291184,47.0904,93.158,93.066,0.25]
[1643348291584,47.0904,93.158,93.067,19.13871896]
[1643348291785,47.0904,93.158,93.068,0.25]
[1643348292287,47.0904,93.158,93.069,19.13871896]
[1643348292786,47.0904,93.158,93.07,0.25]
[1643348293191,47.0904,93.158,93.071,19.13871896]
[1643348293390,47.0904,93.158,93.074,6.0]
[1643348293590,2.98184901,93.171,93.072,0.25]
[1643348293790,2.98184901,93.17,93.074,19.13871896]
[1643348293994,2.98184901,93.17,93.074,25.13871896]
[1643348294192,2.98184901,93.172,93.075,0.25]
[1643348294592,47.2193,93.196,93.076,19.13871896]
[1643348294593,2.98184901,93.177,93.076,19.13871896]
[1643348294792,2.98184901,93.182,93.077,0.25]
[1643348294992,2.98184901,93.182,93.086,6.0]
[1643348295395,2.98184901,93.198,93.087,134.68871896]
[1643348295594,2.98184901,93.201,93.097,6.0]
[1643348295794,1.17654901,93.201,93.12,16.102]
[1643348295993,1.17654901,93.201,93.13,6.0]
[1643348296193,1.17654901,93.228,93.132,109.3]
[1643348296394,24.3955,93.254,93.133,0.25]
[1643348296696,24.3955,93.254,93.142,6.0]
[1643348296893,24.3955,93.254,93.143,0.25]
[1643348297093,24.3955,93.254,93.134,2.16982426]
[1643348297293,24.3955,93.254,93.131,47.99467676]
[1643348297494,24.3955,93.254,93.115,17.33384657]
[1643348297794,24.3955,93.254,93.101,11.48391253]
[1643348297995,24.3955,93.254,93.111,6.0]
[1643348298193,24.3955,93.254,93.116,13.65373679]
[1643348298394,24.3955,93.254,93.117,48.01788689]
[1643348298595,28.88284982,93.254,93.127,6.0]
[1643348298794,28.88284982,93.254,93.128,0.25]
[1643348298998,28.88284982,93.254,93.128,17.58384657]
[1643348299200,28.88284982,93.254,93.129,17.33384657]
[1643348299396,28.88284982,93.254,93.13,0.25]
[1643348299595,28.88284982,93.254,93.129,17.33384657]
[1643348299796,109.3,93.253,93.129,17.33384657]
[1643348299998,5.96576767,93.252,93.129,17.33384657]
[1643348300898,4.48734982,93.25,93.129,17.33384657]
[1643348302001,4.48734982,93.251,93.129,17.33384657]
[1643348303403,113.78734982,93.251,93.129,17.33384657]
[1643348304306,109.3,93.251,93.13,0.25]
[1643348304504,4.48734982,93.253,93.13,0.25]
[1643348304705,113.78734982,93.253,93.131,17.33384657]
[1643348304904,113.78734982,93.253,93.132,0.25]
[1643348305404,109.3,93.253,93.132,0.25]
[1643348307611,1.48583033,93.202,93.132,0.25]
[1643348308011,1.48583033,93.199,93.132,0.25]
[1643348308613,1.48583033,93.2,93.132,17.58384657]
[1643348308815,1.48583033,93.202,93.133,0.25]
[1643348309239,1.48583033,93.204,93.134,17.33384657]
[1643348309442,1.48583033,93.203,93.134,17.33384657]
[1643348309739,1.48583033,93.202,93.135,0.25]
[1643348310340,1.48583033,93.201,93.135,0.25]
[1643348310838,1.48583033,93.199,93.135,0.25]
[1643348311044,1.48583033,93.198,93.135,0.25]
[1643348311444,1.48583033,93.2,93.135,0.25]
[1643348311639,1.48583033,93.197,93.135,0.25]
[1643348311841,1.48583033,93.197,93.114,17.32662435]
[1643348312044,1.48583033,93.189,93.114,17.32662435]
[1643348312440,1.48583033,93.189,93.115,2.16982426]
[1643348312642,1.48583033,93.192,93.115,2.16982426]
[1643348312843,1.48583033,93.191,93.116,37.59530258]
[1643348313040,1.48583033,93.19,93.116,37.59530258]
[1643348313241,1.48583033,93.189,93.117,0.25]
[1643348313541,1.48583033,93.188,93.117,0.25]
[1643348314041,1.48583033,93.187,93.117,0.25]
[1643348314441,1.48583033,93.187,93.116,37.59530258]
[1643348314644,1.48583033,93.185,93.117,0.25]
[1643348314943,1.48583033,93.188,93.117,17.57662435]
[1643348315143,1.48583033,93.187,93.117,126.87662435]
[1643348315341,1.48583033,93.187,93.118,2.16982426]
[1643348315541,72.2672,93.234,93.128,6.0]
[1643348315542,1.48583033,93.192,93.128,6.0]
[1643348315741,1.48583033,93.194,93.128,6.0]
[1643348315942,1.48583033,93.194,93.129,0.25]
[1643348317645,1.48583033,93.193,93.129,0.25]
[1643348318044,1.48583033,93.192,93.129,0.25]
[1643348318545,1.48583033,93.194,93.129,6.25]
[1643348318746,1.48583033,93.195,93.13,17.32662435]
[1643348318945,1.48583033,93.194,93.13,23.57662435]
[1643348319145,1.48583033,93.195,93.13,23.57662435]
[1643348319345,1.48583033,93.195,93.131,19.49644861]
[1643348319546,1.48583033,93.195,93.131,17.32662435]
[1643348319749,1.48583033,93.195,93.132,0.25]
[1643348320146,1.48583033,93.191,93.132,0.25]
[1643348320348,1.48583033,93.19,93.131,17.32662435]
[1643348320548,1.48583033,93.19,93.132,0.25]
[1643348320748,1.48583033,93.189,93.131,17.32662435]
[1643348320948,1.48583033,93.186,93.131,17.32662435]
[1643348321353,1.48583033,93.186,93.132,0.25]
[1643348321554,49.3812,93.234,93.131,17.32662435]
[1643348321555,1.48583033,93.187,93.131,17.32662435]
[1643348321751,1.48583033,93.192,93.14,16.1026]
[1643348321951,4.48734982,93.256,93.14,16.1026]